fUST/lending_fUST_20250416
["ID","MTS","AMOUNT","RATE_DAILY","PERIOD"]
[358157323,1744794639967,-500.0,0.00041095,14]
[358157324,1744794639976,-500.0,0.00041095,14]
[358157325,1744794639985,-500.0,0.00041095,14]
[358157326,1744794639994,-500.0,0.00041095,14]
[358157327,1744794640003,-500.0,0.00041095,14]
[358157328,1744794640012,-500.0,0.00041095,14]
[358157329,1744794640022,-1175.26,0.00041095,14]
[358157330,1744794640031,-550.6,0.00041095,14]
[358157331,1744794640041,-500.0,0.00041095,14]
[358157332,1744794640050,-1835.02,0.00041095,14]
[358157333,1744794640059,-535.3132225,0.00041095,14]
[358157334,1744794640069,-500.0,0.00041095,14]
[358157335,1744794640078,-907.76,0.00041095,14]
[358157336,1744794640087,-500.0,0.00041095,14]
[358157337,1744794640097,-500.0,0.00041095,14]
[358157338,1744794640106,-500.0,0.00041095,14]
[358157339,1744794640116,-226.175763,0.00041095,2]
[358157340,1744794640126,-226.175763,0.00041095,2]
[358157341,1744794640136,-226.175763,0.00041095,2]
[358157342,1744794640146,-500.0,0.00041095,14]
[358157343,1744794640156,-226.175763,0.00041095,2]
[358157344,1744794640166,-226.175763,0.00041095,2]
[358157345,1744794640176,-226.175763,0.00041095,2]
[358157346,1744794640185,-226.175763,0.00041095,2]
[358157347,1744794640194,-226.175763,0.00041095,2]
[358157348,1744794640204,-226.175763,0.00041095,2]
[358157349,1744794640213,-679.41,0.00041095,14]
[358157350,1744794640223,-226.175763,0.00041095,2]
[358157351,1744794640232,-226.175763,0.00041095,2]
[358157352,1744794640241,-436.28957237,0.00041095,14]
[358157353,1744794640251,-226.175763,0.00041095,2]
[358157354,1744794640260,-226.175763,0.00041095,2]
[358157355,1744794640270,-226.175763,0.00041095,2]
[358157356,1744794640280,-226.175763,0.00041095,2]
[358157357,1744794640289,-226.175763,0.00041095,2]
[358157358,1744794640298,-151.0,0.00041095,14]
[358157359,1744794640308,-226.175763,0.00041095,2]
[358157360,1744794640318,-500.0,0.00041095,14]
[358157361,1744794640328,-151.0,0.00041095,14]
[358157362,1744794640338,-226.175763,0.00041095,2]
[358157363,1744794640348,-151.0,0.00041095,14]
[358157364,1744794640358,-151.0,0.00041095,14]
[358157365,1744794640368,-226.175763,0.00041095,2]
[358157366,1744794640378,-226.175763,0.00041095,2]
[358157367,1744794640389,-6053.82,0.00041095,14]
[358157368,1744794640399,-500.0,0.00041095,14]
[358157369,1744794640411,-500.0,0.00041095,14]
[358157370,1744794640421,-1870.74,0.00041095,14]
[358157371,1744794640431,-500.0,0.00041095,14]
[358157372,1744794640441,-500.0,0.00041095,14]
[358157373,1744794640453,-516.69999714,0.00041095,14]
[358157374,1744794640463,-500.0,0.00041095,14]
[358157375,1744794640474,-632.01,0.00041095,14]
[358157376,1744794640484,-500.0,0.00041095,14]
[358157377,1744794640496,-500.0,0.00041095,14]
[358157378,1744794640506,-334.86140776,0.00041095,14]
[358157379,1744794640516,-891.97,0.00041095,14]
[358157380,1744794640526,-1307.16,0.00041095,14]
[358157381,1744794640536,-500.0,0.00041095,14]
[358157382,1744794640546,-500.0,0.00041095,14]
[358157383,1744794640556,-1555.41,0.00041095,14]
[358157384,1744794640565,-509.76110756,0.00041095,14]
[358157385,1744794640576,-7912.94,0.00041095,14]
[358157386,1744794640587,-500.0,0.00041095,14]
[358157387,1744794640597,-632.14,0.00041095,14]
[358157388,1744794640607,-500.0,0.00041095,14]
[358157389,1744794640617,-526.07879738,0.00041095,14]
[358157390,1744794640627,-500.0,0.00041095,14]
[358157391,1744794640638,-1860.14,0.00041095,14]
[358157392,1744794640648,-571.18,0.00041095,14]
[358157393,1744794640659,-500.0,0.00041095,14]
[358157394,1744794640670,-500.0,0.00041095,14]
[358157395,1744794640681,-713.43,0.00041095,14]
[358157396,1744794640691,-500.0,0.00041095,14]
[358157397,1744794640701,-500.0,0.00041095,14]
[358157398,1744794640712,-500.0,0.00041095,14]
[358157399,1744794640722,-500.0,0.00041095,14]
[358157400,1744794640732,-500.0,0.00041095,14]
[358157401,1744794640743,-500.0,0.00041095,14]
[358157402,1744794640753,-500.0,0.00041095,14]
[358157403,1744794640762,-1703.02,0.00041095,14]
[358157404,1744794640772,-1257.68,0.00041095,14]
[358157405,1744794640782,-500.0,0.00041095,14]
[358157406,1744794640791,-500.0,0.00041095,14]
[358157407,1744794640805,-802.16,0.00041095,14]
[358157408,1744794640824,-500.0,0.00041095,14]
[358157409,1744794640835,-709.9,0.00041095,14]
[358157410,1744794640844,-827.3,0.00041095,14]
[358157411,1744794640854,-154.605948,0.00041095,14]
[358157412,1744794640864,-500.0,0.00041095,14]
[358157413,1744794640873,-500.0,0.00041095,14]
[358157414,1744794640883,-500.0,0.00041095,14]
[358157415,1744794640893,-500.0,0.00041095,14]
[358157416,1744794640903,-500.0,0.00041095,14]
[358157417,1744794640913,-500.0,0.00041095,14]
[358157418,1744794640923,-500.0,0.00041095,14]
[358157419,1744794640933,-240.21997096,0.00041095,14]
[358157420,1744794640942,-500.0,0.00041095,14]
[358157421,1744794640951,-500.0,0.00041095,14]
[358157422,1744794640961,-500.0,0.00041095,14]
[358157423,1744794640971,-500.0,0.00041095,14]
[358157424,1744794640981,-500.0,0.00041095,14]
[358157425,1744794640991,-500.0,0.00041095,14]
[358157426,1744794641000,-1175.98,0.00041095,14]
[358157427,1744794641009,-1345.22,0.00041095,14]
[358157428,1744794641019,-500.0,0.00041095,14]
[358157429,1744794641028,-500.0,0.00041095,14]
[358157430,1744794641038,-500.0,0.00041095,14]
[358157431,1744794641047,-500.0,0.00041095,14]
[358157432,1744794641056,-500.0,0.00041095,2]
[358157433,1744794641066,-572.85,0.00041095,14]
[358157434,1744794641075,-500.0,0.00041095,14]
[358157435,1744794641084,-500.0,0.00041095,2]
[358157436,1744794641094,-1574.56,0.00041095,14]
[358157437,1744794641103,-637.05,0.00041095,14]
[358157438,1744794641112,-2725.32,0.00041095,14]
[358157439,1744794641121,-500.0,0.00041095,14]
[358157440,1744794641130,-684.81,0.00041095,14]
[358157441,1744794641139,-500.0,0.00041095,2]
[358157442,1744794641147,-1330.56,0.00041095,14]
[358157443,1744794641155,-188.0,0.00041095,120]
[358157444,1744794641162,-500.0,0.00041095,14]
[358157445,1744794641171,-500.0,0.00041095,14]
[358157446,1744794641181,-500.0,0.00041095,14]
[358157447,1744794641191,-500.0,0.00041095,2]
[358157448,1744794641200,-500.0,0.00041095,14]
[358157449,1744794641211,-355.83200919,0.00041095,14]
[358157450,1744794641220,-524.61,0.00041095,14]
[358157451,1744794641230,-500.0,0.00041095,14]
[358157452,1744794641240,-500.0,0.00041095,14]
[358157453,1744794641250,-299.05092992,0.00041095,2]
[358157454,1744794641259,-500.0,0.00041095,14]
[358157455,1744794641269,-1280.66,0.00041095,14]
[358157456,1744794641278,-500.0,0.00041095,14]
[358157457,1744794641288,-500.0,0.00041095,14]
[358157458,1744794641297,-500.0,0.00041095,14]
[358157459,1744794641307,-500.0,0.00041095,14]
[358157460,1744794641316,-1011.99,0.00041095,14]
[358157461,1744794641326,-1119.67,0.00041095,14]
[358157462,1744794641335,-922.0,0.00041095,14]
[358157463,1744794641344,-500.0,0.00041095,14]
[358157464,1744794641354,-500.0,0.00041095,14]
[358157465,1744794641364,-949.35,0.00041095,14]
[358157466,1744794641374,-500.0,0.00041095,14]
[358157467,1744794641384,-500.0,0.00041095,14]
[358157468,1744794641394,-500.0,0.00041095,14]
[358157469,1744794641405,-500.0,0.00041095,7]
[358157470,1744794641415,-500.0,0.00041095,14]
[358157471,1744794641425,-930.22,0.00041095,14]
[358157472,1744794641434,-151.0,0.00041095,14]
[358157473,1744794641444,-500.0,0.00041095,14]
[358157474,1744794641454,-1621.26,0.00041095,14]
[358157475,1744794641463,-274.168698,0.00041095,14]
[358157476,1744794641473,-2718.07,0.00041095,14]
[358157477,1744794641484,-500.0,0.00041095,14]
[358157478,1744794641493,-500.0,0.00041095,14]
[358157479,1744794641503,-500.0,0.00041095,14]
[358157480,1744794641512,-500.0,0.00041095,14]
[358157481,1744794641521,-795.55,0.00041095,14]
[358157482,1744794641531,-500.0,0.00041095,14]
[358157483,1744794641540,-500.0,0.00041095,14]
[358157484,1744794641550,-500.0,0.00041095,14]
[358157485,1744794641559,-500.0,0.00041095,14]
[358157486,1744794641568,-500.82175451,0.00041095,14]
[358157487,1744794641577,-500.0,0.00041095,14]
[358157488,1744794641587,-500.0,0.00041095,14]
[358157489,1744794641597,-524.88,0.00041095,14]
[358157490,1744794641607,-500.0,0.00041095,14]
[358157491,1744794641617,-1498.0,0.00041095,14]
[358157492,1744794641627,-586.69,0.00041095,14]
[358157493,1744794641638,-500.0,0.00041095,14]
[358157494,1744794641648,-500.0,0.00041095,14]
[358157495,1744794641658,-1806.31,0.00041095,14]
[358157496,1744794641669,-819.92,0.00041095,14]
[358157497,1744794641680,-770.62,0.00041095,14]
[358157498,1744794641690,-500.0,0.00041095,14]
[358157499,1744794641700,-500.0,0.00041095,14]
[358157500,1744794641711,-500.0,0.00041095,14]
[358157501,1744794641722,-500.0,0.00041095,14]
[358157502,1744794641732,-500.0,0.00041095,14]
[358157503,1744794641968,-500.0,0.00041095,14]
[358157504,1744794641978,-500.0,0.00041095,14]
[358157505,1744794641988,-500.0,0.00041095,14]
[358157506,1744794641997,-500.0,0.00041095,14]
[358157507,1744794642007,-808.0,0.00041095,14]
[358157508,1744794642016,-500.0,0.00041095,14]
[358157509,1744794642025,-500.0,0.00041095,14]
[358157510,1744794642034,-1541.17,0.00041095,14]
[358157511,1744794642044,-500.0,0.00041095,14]
[358157512,1744794642053,-500.0,0.00041095,14]
[358157513,1744794642063,-500.0,0.00041095,14]
[358157514,1744794642072,-500.0,0.00041095,14]
[358157515,1744794642081,-562.62,0.00041095,14]
[358157516,1744794642091,-727.49,0.00041095,14]
[358157517,1744794642100,-500.0,0.00041095,14]
[358157518,1744794642110,-892.19,0.00041095,14]
[358157519,1744794642120,-288.5247,0.00041095,14]
[358157520,1744794642129,-500.0,0.00041095,14]
[358157521,1744794642139,-500.0,0.00041095,14]
[358157522,1744794642149,-588.5,0.00041095,14]
[358157523,1744794642162,-500.0,0.00041095,14]
[358157524,1744794642172,-500.0,0.00041095,14]
[358157525,1744794642183,-797.11,0.00041095,14]
[358157526,1744794642193,-500.0,0.00041095,14]
[358157527,1744794642203,-932.77,0.00041095,14]
[358157528,1744794642213,-500.0,0.00041095,14]
[358157529,1744794642223,-500.0,0.00041095,14]
[358157530,1744794642233,-500.0,0.00041095,14]
[358157531,1744794642242,-500.0,0.00041095,14]
[358157532,1744794642252,-500.0,0.00041095,14]
[358157533,1744794642262,-500.0,0.00041095,14]
[358157534,1744794642271,-578.43,0.00041095,14]
[358157535,1744794642282,-500.0,0.00041095,14]
[358157536,1744794642292,-500.0,0.00041095,14]
[358157537,1744794642302,-7334.46,0.00041095,2]
[358157538,1744794642313,-500.0,0.00041095,14]
[358157539,1744794642322,-300.0,0.00041095,30]
[358157540,1744794642331,-954.79,0.00041095,14]
[358157541,1744794642341,-13229.35,0.00041095,14]
[358157542,1744794642352,-500.0,0.00041095,14]
[358157543,1744794642362,-500.0,0.00041095,14]
[358157544,1744794642372,-500.0,0.00041095,14]
[358157545,1744794642382,-571.86,0.00041095,14]
[358157546,1744794642392,-500.0,0.00041095,14]
[358157547,1744794642403,-578.01,0.00041095,14]
[358157548,1744794642418,-500.0,0.00041095,14]
[358157549,1744794642429,-500.0,0.00041095,14]
[358157550,1744794642440,-1137.98,0.00041095,14]
[358157551,1744794642452,-761.98,0.00041095,14]
[358157552,1744794642465,-567.59,0.00041095,14]
[358157553,1744794642474,-500.0,0.00041095,14]
[358157555,1744794642485,-500.0,0.00041095,14]
[358157557,1744794642495,-500.0,0.00041095,14]
[358157558,1744794642505,-909.09,0.00041095,14]
[358157559,1744794642515,-500.0,0.00041095,14]
[358157560,1744794642525,-837.22,0.00041095,14]
[358157561,1744794642535,-500.0,0.00041095,14]
[358157562,1744794642545,-2470.67,0.00041095,14]
[358157563,1744794642554,-500.0,0.00041095,14]
[358157564,1744794642563,-2369.02,0.00041095,14]
[358157566,1744794642572,-500.0,0.00041095,14]
[358157567,1744794642583,-500.0,0.00041095,14]
[358157569,1744794642593,-500.0,0.00041095,14]
[358157571,1744794642603,-563.3,0.00041095,14]
[358157572,1744794642613,-500.0,0.00041095,14]
[358157574,1744794642623,-1046.7,0.00041095,14]
[358157575,1744794642633,-999.89,0.00041095,14]
[358157577,1744794642643,-500.0,0.00041095,14]
[358157578,1744794642654,-500.0,0.00041095,14]
[358157580,1744794642663,-1403.07,0.00041095,14]
[358157582,1744794642673,-799.32,0.00041095,14]
[358157583,1744794642682,-500.0,0.00041095,14]
[358157584,1744794642691,-1092.61,0.00041095,14]
[358157585,1744794642701,-500.0,0.00041095,14]
[358157586,1744794642711,-995.63,0.00041095,14]
[358157587,1744794642720,-500.0,0.00041095,14]
[358157588,1744794642730,-500.0,0.00041095,14]
[358157589,1744794642740,-500.0,0.00041095,14]
[358157590,1744794642749,-500.0,0.00041095,14]
[358157591,1744794642758,-500.0,0.00041095,14]
[358157592,1744794642767,-500.0,0.00041095,14]
[358157593,1744794642776,-500.0,0.00041095,14]
[358157594,1744794642786,-500.0,0.00041095,14]
[358157595,1744794642795,-500.0,0.00041095,14]
[358157596,1744794642805,-500.0,0.00041095,14]
[358157597,1744794642814,-500.0,0.00041095,14]
[358157598,1744794642824,-500.0,0.00041095,14]
[358157599,1744794642834,-401.7421347,0.00041095,14]
[358157600,1744794642843,-505.26,0.00041095,14]
[358157601,1744794642852,-500.0,0.00041095,14]
[358157602,1744794642861,-427.67725681,0.00041095,14]
[358157603,1744794642871,-607.29174446,0.00041095,14]
[358157604,1744794642881,-1076.86,0.00041095,14]
[358157605,1744794642890,-500.0,0.00041095,14]
[358157606,1744794642900,-500.0,0.00041095,14]
[358157607,1744794642910,-956.1,0.00041095,14]
[358157608,1744794642919,-500.0,0.00041095,14]
[358157609,1744794642929,-500.0,0.00041095,14]
[358157610,1744794642938,-1544.73,0.00041095,14]
[358157611,1744794642948,-749.79,0.00041095,14]
[358157612,1744794642959,-500.0,0.00041095,14]
[358157613,1744794642969,-500.0,0.00041095,14]
[358157614,1744794642979,-348.8574772,0.00041095,14]
[358157615,1744794642990,-1236.31,0.00041095,14]
[358157616,1744794643000,-500.0,0.00041095,7]
[358157617,1744794643010,-500.0,0.00041095,14]
[358157618,1744794643020,-500.0,0.00041095,14]
[358157619,1744794643030,-500.0,0.00041095,14]
[358157620,1744794643040,-630.6,0.00041095,14]
[358157621,1744794643049,-500.0,0.00041095,14]
[358157622,1744794643059,-1000.0,0.00041095,5]
[358157623,1744794643069,-1743.31,0.00041095,14]
[358157624,1744794643079,-682.52,0.00041095,14]
[358157625,1744794643088,-500.0,0.00041095,14]
[358157626,1744794643098,-500.0,0.00041095,14]
[358157627,1744794643109,-880.54,0.00041095,14]
[358157628,1744794643118,-662.95,0.00041095,14]
[358157629,1744794643128,-500.0,0.00041095,14]
[358157630,1744794643137,-500.0,0.00041095,14]
[358157631,1744794643148,-500.0,0.00041095,14]
[358157632,1744794643157,-1721.94,0.00041095,14]
[358157633,1744794643167,-500.0,0.00041095,14]
[358157634,1744794643177,-594.82,0.00041095,14]
[358157635,1744794643187,-500.0,0.00041095,14]
[358157636,1744794643197,-500.0,0.00041095,14]
[358157637,1744794643207,-555.35,0.00041095,14]
[358157638,1744794643216,-500.0,0.00041095,14]
[358157639,1744794643226,-506.67287516,0.00041095,14]
[358157640,1744794643236,-833.39,0.00041095,14]
[358157641,1744794643247,-768.58,0.00041095,14]
[358157642,1744794643257,-639.97,0.00041095,14]
[358157643,1744794643267,-500.0,0.00041095,14]
[358157644,1744794643276,-500.0,0.00041095,14]
[358157645,1744794643286,-500.0,0.00041095,14]
[358157646,1744794643296,-500.0,0.00041095,14]
[358157647,1744794643306,-500.0,0.00041095,14]
[358157648,1744794643316,-500.0,0.00041095,14]
[358157649,1744794643326,-500.0,0.00041095,14]
[358157650,1744794643336,-1183.35,0.00041095,14]
[358157651,1744794643346,-500.0,0.00041095,14]
[358157652,1744794643356,-500.0,0.00041095,14]
[358157653,1744794643365,-500.0,0.00041095,14]
[358157654,1744794643375,-679.22,0.00041095,14]
[358157655,1744794643384,-500.0,0.00041095,14]
[358157656,1744794643393,-500.0,0.00041095,14]
[358157657,1744794643404,-500.0,0.00041095,14]
[358157658,1744794643417,-500.0,0.00041095,14]
[358157659,1744794643429,-911.3,0.00041095,14]
[358157660,1744794643439,-500.0,0.00041095,14]
[358157661,1744794643451,-500.0,0.00041095,14]
[358157662,1744794643462,-500.0,0.00041095,14]
[358157663,1744794643472,-1140.18,0.00041095,14]
[358157664,1744794643482,-500.0,0.00041095,14]
[358157665,1744794643492,-508.34,0.00041095,14]
[358157666,1744794643502,-500.0,0.00041095,14]
[358157667,1744794643512,-500.0,0.00041095,14]
[358157668,1744794643521,-500.0,0.00041095,14]
[358157669,1744794643530,-500.0,0.00041095,14]
[358157670,1744794643539,-500.0,0.00041095,14]
[358157671,1744794643549,-500.0,0.00041095,14]
[358157672,1744794643559,-500.0,0.00041095,14]
[358157673,1744794643568,-500.0,0.00041095,14]
[358157674,1744794643580,-636.95,0.00041095,14]
[358157675,1744794643591,-500.0,0.00041095,14]
[358157676,1744794643600,-597.61,0.00041095,14]
[358157677,1744794643610,-500.0,0.00041095,14]
[358157678,1744794643619,-500.0,0.00041095,14]
[358157679,1744794643629,-1000.0,0.00041095,14]
[358157680,1744794643638,-500.0,0.00041095,14]
[358157681,1744794643647,-500.0,0.00041095,14]
[358157682,1744794643657,-1548.88,0.00041095,14]
[358157683,1744794643666,-500.0,0.00041095,14]
[358157684,1744794643675,-1956.78,0.00041095,14]
[358157685,1744794643685,-500.0,0.00041095,14]
[358157686,1744794643695,-151.0,0.00041095,14]
[358157687,1744794643704,-508.83228442,0.00041095,14]
[358157688,1744794643715,-151.0,0.00041095,14]
[358157689,1744794643724,-635.44,0.00041095,14]
[358157690,1744794643734,-259.805104,0.00041095,14]
[358157691,1744794643744,-500.0,0.00041095,14]
[358157692,1744794643754,-500.0,0.00041095,14]
[358157693,1744794643764,-1575.86,0.00041095,14]
[358157694,1744794643773,-500.0,0.00041095,14]
[358157695,1744794643782,-500.0,0.00041095,14]
[358157696,1744794643792,-500.0,0.00041095,14]
[358157697,1744794643802,-500.0,0.00041095,14]
[358157698,1744794643812,-500.0,0.00041095,14]
[358157699,1744794643823,-500.0,0.00041095,14]
[358157700,1744794643833,-631.07,0.00041095,14]
[358157701,1744794643843,-1109.84,0.00041095,14]
[358157702,1744794643853,-1099.0,0.00041095,14]
[358157703,1744794643862,-151.0,0.00041095,14]
[358157704,1744794643871,-500.0,0.00041095,14]
[358157705,1744794643881,-500.0,0.00041095,14]
[358157706,1744794643891,-500.0,0.00041095,14]
[358157707,1744794643901,-500.0,0.00041095,14]
[358157708,1744794643911,-500.0,0.00041095,14]
[358157709,1744794643920,-500.0,0.00041095,14]
[358157710,1744794643929,-500.0,0.00041095,14]
[358157711,1744794643938,-500.0,0.00041095,14]
[358157712,1744794643946,-500.0,0.00041095,14]
[358157713,1744794643955,-500.0,0.00041095,14]
[358157714,1744794643967,-500.0,0.00041095,14]
[358157715,1744794643976,-501.79,0.00041095,14]
[358157716,1744794643986,-500.0,0.00041095,14]
[358157717,1744794643996,-1313.05,0.00041095,14]
[358157718,1744794644006,-1354.48,0.00041095,14]
[358157719,1744794644016,-549.06,0.00041095,14]
[358157720,1744794644026,-500.0,0.00041095,14]
[358157721,1744794644035,-500.0,0.00041095,14]
[358157722,1744794644046,-500.0,0.00041095,14]
[358157723,1744794644055,-500.0,0.00041095,14]
[358157724,1744794644065,-500.0,0.00041095,14]
[358157725,1744794644075,-815.83,0.00041095,14]
[358157726,1744794644084,-500.0,0.00041095,14]
[358157727,1744794644094,-936.64,0.00041095,14]
[358157728,1744794644104,-500.0,0.00041095,14]
[358157729,1744794644114,-183.55450046,0.00041095,14]
[358157730,1744794644123,-1123.68,0.00041095,14]
[358157731,1744794644133,-1480.49,0.00041095,14]
[358157732,1744794644143,-922.5,0.00041095,14]
[358157733,1744794644153,-500.0,0.00041095,14]
[358157734,1744794644163,-500.0,0.00041095,14]
[358157735,1744794644172,-500.0,0.00041095,14]
[358157736,1744794644182,-500.0,0.00041095,14]
[358157737,1744794644192,-500.0,0.00041095,14]
[358157738,1744794644201,-500.0,0.00041095,120]
[358157739,1744794644213,-856.71,0.00041095,14]
[358157740,1744794644225,-1014.98,0.00041095,14]
[358157741,1744794644234,-500.0,0.00041095,14]
[358157742,1744794644244,-1178.49,0.00041095,14]
[358157743,1744794644253,-151.0,0.00041095,14]
[358157744,1744794644263,-500.0,0.00041095,14]
[358157745,1744794644273,-500.0,0.00041095,14]
[358157746,1744794644283,-391.16976458,0.00041095,14]
[358157747,1744794644292,-500.0,0.00041095,14]
[358157748,1744794644302,-500.0,0.00041095,14]
[358157749,1744794644312,-3160.22,0.00041095,14]
[358157750,1744794644321,-1392.81,0.00041095,14]
[358157751,1744794644331,-500.0,0.00041095,14]
[358157752,1744794644340,-500.0,0.00041095,14]
[358157753,1744794644350,-1250.03,0.00041095,14]
[358157754,1744794644360,-152.139122,0.00041095,14]
[358157755,1744794644427,-500.0,0.00041095,14]
[358157756,1744794644437,-856.45,0.00041095,14]
[358157757,1744794644447,-398.88568723,0.00041095,14]
[358157758,1744794644457,-1547.37,0.00041095,14]
[358157759,1744794644466,-500.0,0.00041095,14]
[358157760,1744794644476,-891.99,0.00041095,14]
[358157761,1744794644488,-547.35,0.00041095,14]
[358157762,1744794644498,-2850.71,0.00041095,14]
[358157763,1744794644508,-500.0,0.00041095,14]
[358157764,1744794644517,-500.0,0.00041095,14]
[358157765,1744794644527,-811.89,0.00041095,14]
[358157766,1744794644536,-568.81,0.00041095,14]
[358157767,1744794644546,-922.09,0.00041095,14]
[358157768,1744794644555,-500.0,0.00041095,14]
[358157769,1744794644564,-668.27,0.00041095,14]
[358157770,1744794644574,-1551.17,0.00041095,14]
[358157771,1744794644586,-500.0,0.00041095,14]
[358157772,1744794644596,-500.0,0.00041095,14]
[358157773,1744794644605,-622.54,0.00041095,14]
[358157774,1744794644616,-500.0,0.00041095,14]
[358157775,1744794644625,-500.0,0.00041095,14]
[358157776,1744794644634,-500.0,0.00041095,14]
[358157777,1744794644644,-692.23,0.00041095,14]
[358157778,1744794644654,-500.0,0.00041095,14]
[358157779,1744794644663,-1103.1,0.00041095,14]
[358157780,1744794644673,-537.4,0.00041095,14]
[358157781,1744794644682,-500.0,0.00041095,14]
[358157782,1744794644692,-948.55,0.00041095,14]
[358157783,1744794644702,-665.07,0.00041095,14]
[358157784,1744794644712,-562.27,0.00041095,14]
[358157785,1744794644721,-500.0,0.00041095,14]
[358157786,1744794644731,-500.0,0.00041095,14]
[358157787,1744794644740,-500.0,0.00041095,14]
[358157788,1744794644749,-919.05,0.00041095,14]
[358157789,1744794644757,-500.0,0.00041095,14]
[358157790,1744794644766,-500.0,0.00041095,14]
[358157791,1744794644774,-500.0,0.00041095,14]
[358157792,1744794644783,-1000.0,0.00041095,14]
[358157793,1744794644791,-590.22,0.00041095,14]
[358157794,1744794644801,-1560.3,0.00041095,14]
[358157795,1744794644810,-2444.16,0.00041095,14]
[358157796,1744794644820,-962.35,0.00041095,14]
[358157797,1744794644831,-500.0,0.00041095,14]
[358157798,1744794644841,-2021.39,0.00041095,14]
[358157799,1744794644850,-2049.7,0.00041095,14]
[358157800,1744794644859,-500.0,0.00041095,14]
[358157801,1744794644868,-500.0,0.00041095,14]
[358157802,1744794644878,-500.0,0.00041095,14]
[358157803,1744794644887,-586.02,0.00041095,14]
[358157804,1744794644896,-2730.23,0.00041095,14]
[358157805,1744794644906,-891.48,0.00041095,14]
[358157806,1744794644915,-186.76387052,0.00041095,14]
[358157807,1744794644924,-500.0,0.00041095,14]
[358157808,1744794644933,-627.5,0.00041095,14]
[358157809,1744794644942,-628.05177327,0.00041095,14]
[358157810,1744794644951,-991.18,0.00041095,14]
[358157811,1744794644960,-1206.08,0.00041095,14]
[358157812,1744794644970,-500.0,0.00041095,14]
[358157813,1744794644980,-500.0,0.00041095,14]
[358157814,1744794644990,-500.0,0.00041095,14]
[358157815,1744794644999,-500.0,0.00041095,14]
[358157816,1744794645009,-500.0,0.00041095,14]
[358157817,1744794645018,-2910.12,0.00041095,14]
[358157818,1744794645028,-500.0,0.00041095,14]
[358157819,1744794645038,-500.0,0.00041095,14]
[358157820,1744794645047,-1335.23,0.00041095,14]
[358157821,1744794645058,-500.0,0.00041095,14]
[358157822,1744794645070,-500.0,0.00041095,14]
[358157823,1744794645081,-1889.95,0.00041095,14]
[358157824,1744794645090,-500.0,0.00041095,14]
[358157825,1744794645099,-500.0,0.00041095,14]
[358157826,1744794645109,-1387.84,0.00041095,14]
[358157827,1744794645119,-176.54037521,0.00041095,14]
[358157828,1744794645129,-500.0,0.00041095,14]
[358157829,1744794645139,-500.0,0.00041095,14]
[358157830,1744794645149,-500.0,0.00041095,14]
[358157831,1744794645159,-526.54,0.00041095,14]